{"text_format":"1","workbook":"xlsx","n_sheets":7,"sheets":["OsnovniPodatki","REG_DS","REG_PN","REG_Distributerji","BAZA","XML","Sifrant"],"not_rendered":{"charts":0,"images":3,"macros":1,"external_links":0,"defined_names":8,"comments":0,"pivot_tables":0},"unopened":[],"bounds":{"document_bytes":16777216,"sheet_cells":100000,"rows_first":2000,"rows_last":500,"rows_between":2000,"halvings":0,"cell_chars":16384,"cell_head_chars":4096},"cells_cut":0,"cells_raw":0,"read":"whole","date_system":"1900"}

{"sheet":"OsnovniPodatki","index":0,"n_rows":40,"n_cols":12,"rows_kept":40,"cut":false,"hidden":false,"merged":[[15,1,15,2],[13,3,13,4],[2,1,2,4],[3,3,3,4],[4,1,4,4],[5,1,5,4],[12,1,12,2],[11,1,11,2],[9,1,9,2],[10,1,10,2],[9,3,9,4],[13,1,13,2],[14,1,14,2],[14,3,14,4],[10,3,10,4],[16,1,16,2],[17,1,17,2],[18,1,18,2],[33,1,33,4],[39,1,39,4],[24,1,24,4],[19,1,19,2],[22,1,22,4],[34,1,34,4],[35,1,35,4],[18,3,18,4],[19,3,19,4]]}
[]
[null,null,null,null,null,null,null,null,null,null,{"$f":"BAZA!M11","v":8},"Napake SUM"]
[null,{"$f":"IF(BAZA!N18>0,\"Neizpolnjen ali nepravilno izpolnjen obrazec ni mogoče oddati!\",\"\")","v":""},null,null,null,null,null,null,null,null,{"$f":"SUM(K10:K27)","v":8},"Napake"]
[]
[null,"Priglasitev in spremembe registriranih entitet sistemov daljinskega ogrevanja in hlajenja"]
[null,"Dejavnost distribucije in proizvodnje toplote"]
[null,{"$f":"IF(K2>0,\"OBRAZEC NEUSTREZNO IZPOLNJEN!\",\"\")","v":"OBRAZEC NEUSTREZNO IZPOLNJEN!"}]
[null,"OSNOVNI PODATKI O PRIGLASITELJU (DISTRIBUTERJU/PROIZVAJALCU):"]
[]
[null,"Pravni status priglasitelja:",null,null,null,null,{"$f":"IF(K10=1,\"û\",\"ü\")","v":"û"},null,null,null,{"$f":"IF(D10=\"\",1,0)","v":1}]
[null,"Firma",null,null,null,null,"ü",null,null,null,{"$f":"IF(OR(AND($D$10=\"Pravna oseba\",D11<>\"\"),AND($D$10<>\"Pravna oseba\",D11=\"\"))=TRUE,0,1)","v":0}]
[null,{"$f":"IF(D10=\"Drugo\",\"Ime\",\"Ime zakonitega zastopnika\")","v":"Ime zakonitega zastopnika"},null,null,null,null,"û",null,null,null,{"$f":"IF(D12=\"\",1,0)","v":1}]
[null,{"$f":"IF(D10=\"Drugo\",\"Priimek\",\"Priimek zakonitega zastopnika\")","v":"Priimek zakonitega zastopnika"},null,null,null,null,"û",null,null,null,{"$f":"IF(D13=\"\",1,0)","v":1}]
[null,{"$f":"IF(D10<>\"Pravna oseba\",\"Naslov opravljanja dejavnosti\",\"Sedež firme\")","v":"Naslov opravljanja dejavnosti"},null,null,null,null,"û",null,null,null,{"$f":"IF(D14=\"\",1,0)","v":1}]
[null,"Naslov stalnega prebivališča",null,null,null,null,"û",null,null,null,{"$f":"IF(OR(AND($D$10=\"Pravna oseba\",D15=\"\"),AND($D$10<>\"Pravna oseba\",D15<>\"\"))=TRUE,0,1)","v":1}]
[null,"Matična / davčna številka priglasitelja",null,null,null,null,"û",null,null,null,{"$f":"IF(E16=\"\",1,IF(OR(AND(D10=\"Pravna oseba\",LEN(E16)=10),AND(D10<>\"Pravna oseba\",LEN(E16)=8)),0,1))","v":1}]
[null,"Telefonska številka priglasitelja*"]
[null,"Mobilna številka priglasitelja*"]
[null,"Elektronski naslov priglasitelja*"]
[null,"Uradna internetna stran priglasitelja*"]
[]
[null,"Opomba:"]
[]
[]
[null,"Na podlagi prvega odstavka 7. člena Zakona o oskrbi s toploto iz distribucijskih sistemov (ZOTDS), Uradni list RS 44/22, mora distributer toplote ali drugih energetskih plinov pred pričetkom in po prenehanju opravljanja dejavnosti distribucije toplote ali drugih energetskih plinov na določenem distribucijskem sistemu o tem obvestiti Agencijo za energijo (v nadaljevanju agencija).\n\nZa potrebe evidentiranja priglašenih distribucijskih sistemov je agencija vzpostavila register entitet distribucijskih sistemov daljinskega ogrevanja in hlajenja, na podlagi katerega vodi evidenco priglašenih oz. registriranih distribucijskih sistemov in evidenco proizvodnih naprav toplote, ki tem sistemom zagotavljajo oskrbo s toploto. Na podlagi vpisa v register entitet agencija podeljuje posameznim entitetam identifikacijske ključe, ki jih zavezanci za poročanje uporabljajo pri elektronskem posredovanju podatkov agenciji v obliki zato predpisanih obrazcev.\n\nS pomočjo elektronskega obrazca DT-Entitete_REG distributerji in proizvajalci toplote za oskrbo sistemov daljinskega ogrevanja izvajajo priglasitev in spremembe osnovnih karakteristik entitet sistemov daljinskega ogrevanja in hlajenja. Prejete priglasitve in spremembe so zavedene v registru entitet sistemov daljinskega ogrevanja in hlajenja.\n\nNa podlagi drugega odstavka 7. člena ZOTDS, za namen vodenja evidenc izvajalcev dejavnosti distribucije toplote ali drugih energetskih plinov agencija, skladno z zakonom, ki ureja varovanje osebnih podatkov in Splošno uredbo o varstvu podatkov (GDPR), zbira, vodi in obdeluje naslednje osebne podatke distributerja, ki je fizična oseba (Pravni status priglasitelja \"drugo\"): ime, priimek, naslov stalnega prebivališča in naslov opravljanja dejavnosti."]
[null,null,null,"Kraj:",null,null,{"$f":"IF(K26=1,\"û\",\"ü\")","v":"û"},null,null,null,{"$f":"IF(E26=\"\",1,0)","v":1}]
[null,null,null,"Datum:",null,null,{"$f":"IF(K27=1,\"û\",\"ü\")","v":"û"},null,null,null,{"$f":"IF(E27=\"\",1,0)","v":1}]
[]
[null,null,null,"Podpis odgovorne osebe:"]
[]
[]
[null,"Način izpolnitve obrazca:"]
[]
[null,"a) Priglasitev dejavnosti distribucije toplote na določenem distribucijskem sistemu na podlagi prvega odstavka 287. člena EZ-1 poda pravna ali fizična oseba (priglasitelj) agenciji  pred samim pričetkom opravljanja dejavnosti distribucije toplote ali drugih energetskih plinov na določenem distribucijskem sistemu (nov distribucijski sistem), v primeru nepriglašenega sitribucijskega sistema (obstoječ distribucijski sistem) in v primeru prenehanja opravljanja dejavnosti (predan ali ukinjen distribucijski sistem). \n\nPrav tako priglasitelj oz. zavezanec za poročanje s pomočjo obrazca ob spremembi osnovnih karakteristik distribucijskega sistema agenciji priglasi nastale spremembe. Priglasitev za distribucijske sisteme se podaja v Tabelo 1, zavihek \"REG_DS\", kjer so podana tudi podrobnejša navodila za vnos podatkov."]
[null,"b) Priglasitev in spremembe osnovnih karakteristik proizvodnih naprav, s katerimi se oskrbujejo sistemi daljinskega ogrevanja izvajajo distributerji toplote z lastno proizvodnjo in proizvajalci toplote za sisteme daljinskega ogrevanja. Med proizvajalce toplote se štejejo tudi upravniki kotlovnic, ki upravljajo kotlovnice za oskrbo distribucijskih sistemov daljinskega ogrevanj in hlajenja. \n\nPriglasitev in spremembe osnovnih karakteristik proizvodnih naprav se podajo v Tabelo 2, zavihek \"REG_PN\", kjer so podana tudi podrobnejša navodila za vnos podatkov. V primeru, ko proizvajalec toplote prodaja toploto distributerju ki ni vpisan v register entitet, proizvajalec toplote priglasi neregistriranega distributerja s pomočjo Tabele 3, zavihek  \"REG_Distributerji\"."]
[null,"c) Pravilno izpolnjen obrazec priglasitelj oz. zavezanec za poročanje odda agenciji po elektronski pošti na elektronski naslov: \npriglasitev.dt-dep@agen-rs.si s pomočjo aktiviranja gumba »Shrani in pošlji obrazec«, ki omogoča avtomatsko kreiranje e-poštnega sporočila in posredovanje Excelovega obrazca agenciji (pri izpolnjevanju obrazca v elektronski obliki (program Microsoft Excel 2013 ali višji) morajo biti za izvedbo avtomatiziranega posredovanja obrazca agenciji omogočeni makri (izvajanje VBA kode)."]
[]
[null,"Varovanje osebnih podatkov:"]
[]
[null,"Agencija bo osebne podatke fizične osebe uporabljala izključno za namen vodenja evidenc izvajalcev dejavnosti distribucije toplote ali drugih energetskih plinov; z  osebnimi podatki bo ravnala v skladu z zakonom, ki ureja varstvo osebnih podatkov in GDPR. Agencija bo osebne podatke posredovala drugim uporabnikom le, če bo za to obstajala zakonska obveznost ali v anonimizirani obliki za statistične potrebe. \n\nKadar telefonska in/ali mobilna številka priglasitelja ter elektronski naslov firme, ki se dajeta prostovoljno in izključno za namen komuniciranja v primeru potrebnih dodatnih pojasnil v zvezi s posredovanimi podatki, predstavlja osebni podatek fizične osebe, se agencija zavezuje, da bo s temi podatki ravnala v skladu z zakonom, ki ureja varstvo osebnih podatkov in GDPR. Agencija bo navedene podatke shranjevala in uporabljala le toliko časa, dokler bo to potrebno za dosego namena, zaradi katerega so bili obdelovani in bo po izpolnitvi namena osebne podatke izbrisala. Agencija navedenih osebnih podatkov ne bo posredovala drugim uporabnikom. Posameznik, na katerega se osebni podatki nanašajo, ima pravice, ki mu jih zagotavljata zakon, ki ureja varstvo osebnih podatkov in GDPR; kadarkoli lahko zahteva dostop do svojih osebnih podatkov, popravek, izbris, omejitev ali prenos osebnih podatkov; prav tako lahko vloži pritožbo pri Informacijskem pooblaščencu, če meni, da je pri obdelavi njegovih osebnih podatkov prišlo do kršitve nacionalne zakonodaje, ki ureja varstvo osebnih podatkov ali GDPR. \nČe ima posameznik na katerega se osebni podatki nanašajo kakršnokoli vprašanje, povezano z obdelavo svojih osebnih podatkov, jih lahko pošlje na elektronski naslov pri agenciji pooblaščene osebe za varstvo osebnih podatkov: dpo@agen-rs.si.\n"]

{"sheet":"REG_DS","index":1,"n_rows":21,"n_cols":33,"rows_kept":21,"cut":false,"hidden":false,"merged":[]}
[]
[null,null,"Register entitet distribucijskih sistemov daljinskega ogrevanja in hlajenja",null,null,null,null,null,null,null,null,null,null,null,null,null,null,null,null,null,{"$f":"IF(U12=\"\",COUNTA(E12,H12:Z12)=13)","v":false},null,null,null,null,null,null,null,null,null,null,{"$f":"SUM(tbl_DS_RegPriglasitev[Napake SUM])","v":0},"Napake"]
[null,null,"Priglasitev in spremembe osnovnih karakteristik sistemom daljinskega ogrevanja in hlajenja"]
[]
[null,null,null,null,null,null,null,null,null,null,null,null,null,null,null,null,null,null,null,null,null,null,"Dostop do spletnega GIS za pomoč pri določevanju geokoordinat:"]
[null,null,null,null,null,null,null,null,null,null,null,null,null,null,null,null,null,null,null,null,null,null,null,null,"GOOGLE MAP","ARCGIS"]
[null,null,{"$f":"IF(AF2>0,\"Zaznano število napak pri zpolnjevanj obrazca: \"&AF2,\"\")","v":""},null,null,null,null,null,null,null,null,null,null,null,null,null,null,null,null,null,null,null,{"$f":"IF(OR(Y12=\"\",Z12=\"\"),\nHYPERLINK(\"https://www.arcgis.com/home/webmap/viewer.html?center=15.642775, 46.56165&level=17\",\"ARC GIS - Prikaz geolokacije glavnega vira toplote oskrbe distribucijskega sistema\"),\nHYPERLINK(\"https://www.arcgis.com/home/webmap/viewer.html?center=\"&SUBSTITUTE(SUBSTITUTE(Z12,\".\",\"\"),\",\",\".\")&\",\"&SUBSTITUTE(SUBSTITUTE(Y12,\".\",\"\"),\",\",\".\")&\"&level=17\",\"ARC GIS - Prikaz geolokacije glavnega vira toplote oskrbe distribucijskega sistema\"))","v":"ARC GIS - Prikaz geolokacije glavnega vira toplote oskrbe distribucijskega sistema"}]
[null,"Tabela 1",null,null,null,null,null,null,null,null,null,null,null,null,null,null,"Karakteristični podatki na strani odjema (na dan 31.12.)",null,null,"Karakteristični podatki o obliki izvajanja dejavnosti (GJS / Tržni / Lastniški distribucijski sistemi)",null,null,null,"Koordinate geolokacije glavnega vira"]
[null,"01","02","03","04","05","06","07","08","09","10","11","12","13","14","15","16","17","18","19","20","21","22","23","24","25","26","27","28","29","30"]
[null,"ID","Vrsta priglasitve\n(7. členu ZOTDS)","Opredelitev priglasitve","Datum izvedene spremembe na DS","Matična številka (POS) \n(Prevzemnik / nov upravljalec DS)","Naziv poslovnega subjekta (POS) \n(Prevzemnik / nov upravljalec DS)","Identifikacijski ključ \ndistribucijskega sistema","Naziv distribucijskega sistema","Občina izvajanja dejavnosti","Datum \nzačetka obratovanja / izvajanja \ndejavnosti distribucije toplote","Vrsta \ndistribucijskega sistema \nglede na njegov temperaturni režim","Vrsta distribucijskega sistema \nglede na njegov namen oskrbe s toploto","Vrsta \ndistribucijskega sistema \npo tipu omrežja","Vrsta \ndistribucijskega sistema \npo izvedbi omrežja","Vrsta \ndistribucijskega sistema \nglede načina zagotavljanja oskrbe s toploto","Število oskrbovanih gospodinjstev (GO)","Število ostalih oskrbovanih odjemalcev (OO)","Skupna instalirana toplotna moč na strani odjemalcev [MWt]","Oblika izvaja dejavnost distribucije toplote","Datum \npodeljene koncesije (GJS)*","Obdobje \npodeljene koncesije (GJS)* \n[let]","Podeljena izključna pravica izvajanja GJS*","Priglasitvi/spremembi je priložena  topografska shema DS \n(PDF format)","Geokoordinata (Latituda)\n(prevzemno mesto vira toplote) \n[°]","Geokoordinata (Longituda)\n(prevzemno mesto vira toplote) \n[°]","Napake SUM","Kontrola  sprememb karakteristik","Kontrola priglasitev nov sistem","Kontrola priglasitev obstoječ sistem","Kontrola Predaje","Kontrola GJS","Kontrola izpolnjenosti"]
[null,"ID","ID_REGDS_TIP","ID_REGDS","REGDS_SPR_Datum","ID_POS_PR","POS_PR_Naziv","ID_DS","DSistem Naziv_AE","ObcinaNaziv","Aktiven_OD","DSistem Tip_TempRezim","DSistem NamenPorabe","DSistem Tip_Omrezje","DSistem Tip_OmrezjeIzvedba","StatusDS_Oskrba","GO_St","OO_St","PTE_[MWt]","GJS_OblikaIzvajanja","GJS_Koncesija Datum","GJS_Koncesija Obdobje","GJS_IzkljucnaPravica","TopoShema","DSistem Latituda","DSistem Longituda","Napake SUM","Napake 1","Napake 2","Napake 3","Napake 4","Napake 5","Napake 6"]
[null,{"$f":"IFERROR(B11+1,1)","v":1},null,null,null,null,null,null,null,null,null,null,null,null,null,null,null,null,null,null,null,null,null,null,null,null,{"$f":"SUM(AB12:AG12)","v":0},{"$f":"IF(C12=\"SPD\",\nIF(AND(C12=\"SPD\",D12=\"SPR\"),\nIF(AND(IF(U12=\"\",COUNTA(E12,H12:Z12)=17,COUNTA(E12,H12:Z12)=20),COUNTA(F12)=0),0,1),1),0)","v":0},{"$f":"IF(AND(C12=\"POD\",D12=\"PRU-N\"),IF(AND(C12=\"POD\",D12=\"PRU-N\"),IF(COUNTA(F12:T12)=12,0,1),0),0)","v":0},{"$f":"IF(AND(C12=\"POD\",D12=\"PRU-O\"),IF(COUNTA(F12:T12)=15,0,1),0)","v":0},{"$f":"IF(C12<>\"PRD\",0,IF(OR(AND(COUNTA(D12:Z12)=20,D12=\"PRE\",COUNTA(U12:W12)=0),AND(COUNTA(D12:Z12)=23,D12=\"PRE\",COUNTA(U12:W12)=3),AND(COUNTA(D12:Z12)=18,D12=\"UKD\",COUNTA(U12:W12)=0),AND(COUNTA(D12:Z12)=21,D12=\"UKD\",COUNTA(U12:W12)=3)),0,1))","v":0},{"$f":"IF(T12=\"\",0,IF(OR(T12=\"Upravljanje tržnega distribucijskega sistema\",T12=\"Upravljanje lastniškega distribucijskega sistema\"),IF(COUNTA(U12:W12)=0,0,1),IF(COUNTA(U12:W12)=3,0,1)))","v":0},{"$f":"IF(AND(C12=\"\",COUNTA(C12:Z12)>0),1,0)","v":0}]
[null,{"$f":"IFERROR(B12+1,1)","v":2},null,null,null,null,null,null,null,null,null,null,null,null,null,null,null,null,null,null,null,null,null,null,null,null,0,0,0,0,0,0,0]
[null,3,null,null,null,null,null,null,null,null,null,null,null,null,null,null,null,null,null,null,null,null,null,null,null,null,0,0,0,0,0,0,0]
[null,4,null,null,null,null,null,null,null,null,null,null,null,null,null,null,null,null,null,null,null,null,null,null,null,null,0,0,0,0,0,0,0]
[null,5,null,null,null,null,null,null,null,null,null,null,null,null,null,null,null,null,null,null,null,null,null,null,null,null,0,0,0,0,0,0,0]
[null,6,null,null,null,null,null,null,null,null,null,null,null,null,null,null,null,null,null,null,null,null,null,null,null,null,0,0,0,0,0,0,0]
[null,7,null,null,null,null,null,null,null,null,null,null,null,null,null,null,null,null,null,null,null,null,null,null,null,null,0,0,0,0,0,0,0]
[null,8,null,null,null,null,null,null,null,null,null,null,null,null,null,null,null,null,null,null,null,null,null,null,null,null,0,0,0,0,0,0,0]
[null,9,null,null,null,null,null,null,null,null,null,null,null,null,null,null,null,null,null,null,null,null,null,null,null,null,0,0,0,0,0,0,0]
[null,10,null,null,null,null,null,null,null,null,null,null,null,null,null,null,null,null,null,null,null,null,null,null,null,null,0,0,0,0,0,0,0]

{"sheet":"REG_PN","index":2,"n_rows":50,"n_cols":27,"rows_kept":50,"cut":false,"hidden":false,"merged":[]}
[]
[null,null,"Register entitet distribucijskih sistemov daljinskega ogrevanja in hlajenja",null,null,null,null,null,null,null,null,null,null,null,null,null,null,null,null,null,null,null,null,null,null,{"$f":"SUM(tbl_PN_RegPriglasitev[Napake SUM])","v":0},"Napake"]
[null,null,"Priglasitev in spremembe osnovnih karakteristik proizvodnih naprav za oskrbo sistemov daljinskega ogrevanja in hlajenja"]
[null,null,null,null,null,null,null,null,null,null,null,null,null,null,null,null,null,null,null,null,null,null,{"$f":"IF(OR(W11=\"\",X11=\"\"),\nHYPERLINK(\"https://www.arcgis.com/home/webmap/viewer.html?center=15.642775, 46.56165&level=17\",\"ARC GIS - Prikaz geolokacije proizvodne naprave\"),\nHYPERLINK(\"https://www.arcgis.com/home/webmap/viewer.html?center=\"&SUBSTITUTE(SUBSTITUTE(X11,\".\",\"\"),\",\",\".\")&\",\"&SUBSTITUTE(SUBSTITUTE(W11,\".\",\"\"),\",\",\".\")&\"&level=17\",\"ARC GIS - Prikaz geolokacije proizvodne naprave\"))","v":"ARC GIS - Prikaz geolokacije proizvodne naprave"}]
[null,null,{"$f":"IF(Z2>0,\"Zaznano število napak pri zpolnjevanj obrazca: \"&Z2,\"\")","v":""},null,null,null,null,null,null,null,null,null,null,null,null,null,null,null,"Dostop do GIS za pomoč pri določevanju geokoordinat:",null,null,null,"GOOGLE MAP","ARCGIS"]
[]
[null,"Tabela 2"]
[null,"01","02","03","04","05","06","07","08","09","10","11","12","13","14","15","16","17","18","21","22","23","19","20","23","24","25"]
[null,"ID","Namen registracije","Datum izvedene spremembe PN","Identifikacijski ključ\nproizvodne naprave (PN)","Primarni namen proizvodne naprave (PN) ","Leto izdelave proizvodne naprave \n[leto]","Naziv proizvodne naprave / hranilnika toplote","Energetska tehnologija proizvodne naprave","Vrsta proizvodnega procesa","Nazivna \nelektrična moč naprave \n[MWe]","Električni \nizkoristek naprave pri \nnazivni moči\n[%]","Nazivna \ntoplotna moč naprave \n[MWt]","Toplotni \nizkoristek naprave pri \nnazivni moči\n[%]","Glavno (pretežno) primarno gorivo","Koncentracija prahu \npri nazivni toplotni moči \n[mg/m³]","Koncentracija CO \npri nazivni toplotni moči \n[mg/m³]","Koncentracija SO₂ \npri nazivni toplotni moči \n[mg/m³]","Koncentracija NOx \npri nazivni toplotni moči \n[mg/m³]","Število hranilnikov","Skupni volumen hranilnikov\n[m³]","Skupna zmogljivost hranilnikov [MWh]","Geokoordinata (Latituda)\nproizvodne naprave (objekta) \n[°]","Geokoordinata (Longituda)\nproizvodne naprave (objekta) \n[°]","Napake SUM","Kontrola  ustreznosti sprememb","Kontrola seštevkov vnosov"]
[null,"ID","ID_REGPN","REGPN_SPR_Datum","ID_PN","PrimarniNamenProizvodnje","LetoIzdelave","PN_Naziv","Tehnologija_Tip","ProizvodniProces","MocNazivnaEE [MW]","Izkoristek NazivnaMocEE","MocNazivnaTE [MW]","Izkoristek NazivnaMocTE","GorivoPrimarno","MocNazivnaTE Prah_[mg/m³]","MocNazivnaTE CO2_[mg/m³]","MocNazivnaTE SO2_[mg/m³]","MocNazivnaTE NOX_[mg/m³]","HRTE_Stevilo","HRTE_Volumen [m3]","HRTE_Zmogljivost [MWh]","PN_Latituda","PN_ Longituda","Napake SUM","Napake 1","Napake 2"]
[null,{"$f":"IFERROR(B10+1,1)","v":1},null,null,null,null,null,null,null,null,null,null,null,null,null,null,null,null,null,null,null,null,null,null,{"$f":"IF(COUNTA(C11:V11)=0,0,SUM(AA11+Z11))","v":0},{"$f":"IF(AND(C11=\"REG-N\",E11<>\"\"),1,0)","v":0},{"$f":"IF(C11=\"REG-N\",IF(AND(COUNTA(D11,F11:X11)=20,E11=\"\"),0,1),IF(AND(COUNTA(D11:X11)=21,E11<>\"\"),0,1))","v":1}]
[null,{"$f":"IFERROR(B11+1,1)","v":2},null,null,null,null,null,null,null,null,null,null,null,null,null,null,null,null,null,null,null,null,null,null,{"$f":"IF(COUNTA(C12:V12)=0,0,SUM(AA12+Z12))","v":0},{"$f":"IF(AND(C12=\"REG-N\",E12<>\"\"),1,0)","v":0},1]
[null,{"$f":"IFERROR(B12+1,1)","v":3},null,null,null,null,null,null,null,null,null,null,null,null,null,null,null,null,null,null,null,null,null,null,{"$f":"IF(COUNTA(C13:V13)=0,0,SUM(AA13+Z13))","v":0},{"$f":"IF(AND(C13=\"REG-N\",E13<>\"\"),1,0)","v":0},1]
[null,4,null,null,null,null,null,null,null,null,null,null,null,null,null,null,null,null,null,null,null,null,null,null,{"$f":"IF(COUNTA(C14:V14)=0,0,SUM(AA14+Z14))","v":0},{"$f":"IF(AND(C14=\"REG-N\",E14<>\"\"),1,0)","v":0},1]
[null,5,null,null,null,null,null,null,null,null,null,null,null,null,null,null,null,null,null,null,null,null,null,null,{"$f":"IF(COUNTA(C15:V15)=0,0,SUM(AA15+Z15))","v":0},{"$f":"IF(AND(C15=\"REG-N\",E15<>\"\"),1,0)","v":0},1]
[null,6,null,null,null,null,null,null,null,null,null,null,null,null,null,null,null,null,null,null,null,null,null,null,{"$f":"IF(COUNTA(C16:V16)=0,0,SUM(AA16+Z16))","v":0},{"$f":"IF(AND(C16=\"REG-N\",E16<>\"\"),1,0)","v":0},1]
[null,7,null,null,null,null,null,null,null,null,null,null,null,null,null,null,null,null,null,null,null,null,null,null,{"$f":"IF(COUNTA(C17:V17)=0,0,SUM(AA17+Z17))","v":0},{"$f":"IF(AND(C17=\"REG-N\",E17<>\"\"),1,0)","v":0},1]
[null,8,null,null,null,null,null,null,null,null,null,null,null,null,null,null,null,null,null,null,null,null,null,null,{"$f":"IF(COUNTA(C18:V18)=0,0,SUM(AA18+Z18))","v":0},{"$f":"IF(AND(C18=\"REG-N\",E18<>\"\"),1,0)","v":0},1]
[null,9,null,null,null,null,null,null,null,null,null,null,null,null,null,null,null,null,null,null,null,null,null,null,{"$f":"IF(COUNTA(C19:V19)=0,0,SUM(AA19+Z19))","v":0},{"$f":"IF(AND(C19=\"REG-N\",E19<>\"\"),1,0)","v":0},1]
[null,10,null,null,null,null,null,null,null,null,null,null,null,null,null,null,null,null,null,null,null,null,null,null,{"$f":"IF(COUNTA(C20:V20)=0,0,SUM(AA20+Z20))","v":0},{"$f":"IF(AND(C20=\"REG-N\",E20<>\"\"),1,0)","v":0},1]
[null,11,null,null,null,null,null,null,null,null,null,null,null,null,null,null,null,null,null,null,null,null,null,null,{"$f":"IF(COUNTA(C21:V21)=0,0,SUM(AA21+Z21))","v":0},{"$f":"IF(AND(C21=\"REG-N\",E21<>\"\"),1,0)","v":0},1]
[null,12,null,null,null,null,null,null,null,null,null,null,null,null,null,null,null,null,null,null,null,null,null,null,{"$f":"IF(COUNTA(C22:V22)=0,0,SUM(AA22+Z22))","v":0},{"$f":"IF(AND(C22=\"REG-N\",E22<>\"\"),1,0)","v":0},1]
[null,13,null,null,null,null,null,null,null,null,null,null,null,null,null,null,null,null,null,null,null,null,null,null,{"$f":"IF(COUNTA(C23:V23)=0,0,SUM(AA23+Z23))","v":0},{"$f":"IF(AND(C23=\"REG-N\",E23<>\"\"),1,0)","v":0},1]
[null,14,null,null,null,null,null,null,null,null,null,null,null,null,null,null,null,null,null,null,null,null,null,null,{"$f":"IF(COUNTA(C24:V24)=0,0,SUM(AA24+Z24))","v":0},{"$f":"IF(AND(C24=\"REG-N\",E24<>\"\"),1,0)","v":0},1]
[null,15,null,null,null,null,null,null,null,null,null,null,null,null,null,null,null,null,null,null,null,null,null,null,{"$f":"IF(COUNTA(C25:V25)=0,0,SUM(AA25+Z25))","v":0},{"$f":"IF(AND(C25=\"REG-N\",E25<>\"\"),1,0)","v":0},1]
[null,16,null,null,null,null,null,null,null,null,null,null,null,null,null,null,null,null,null,null,null,null,null,null,{"$f":"IF(COUNTA(C26:V26)=0,0,SUM(AA26+Z26))","v":0},{"$f":"IF(AND(C26=\"REG-N\",E26<>\"\"),1,0)","v":0},1]
[null,17,null,null,null,null,null,null,null,null,null,null,null,null,null,null,null,null,null,null,null,null,null,null,{"$f":"IF(COUNTA(C27:V27)=0,0,SUM(AA27+Z27))","v":0},{"$f":"IF(AND(C27=\"REG-N\",E27<>\"\"),1,0)","v":0},1]
[null,18,null,null,null,null,null,null,null,null,null,null,null,null,null,null,null,null,null,null,null,null,null,null,{"$f":"IF(COUNTA(C28:V28)=0,0,SUM(AA28+Z28))","v":0},{"$f":"IF(AND(C28=\"REG-N\",E28<>\"\"),1,0)","v":0},1]
[null,19,null,null,null,null,null,null,null,null,null,null,null,null,null,null,null,null,null,null,null,null,null,null,{"$f":"IF(COUNTA(C29:V29)=0,0,SUM(AA29+Z29))","v":0},{"$f":"IF(AND(C29=\"REG-N\",E29<>\"\"),1,0)","v":0},1]
[null,20,null,null,null,null,null,null,null,null,null,null,null,null,null,null,null,null,null,null,null,null,null,null,{"$f":"IF(COUNTA(C30:V30)=0,0,SUM(AA30+Z30))","v":0},{"$f":"IF(AND(C30=\"REG-N\",E30<>\"\"),1,0)","v":0},1]
[null,{"$f":"IFERROR(B30+1,1)","v":21},null,null,null,null,null,null,null,null,null,null,null,null,null,null,null,null,null,null,null,null,null,null,{"$f":"IF(COUNTA(C31:V31)=0,0,SUM(AA31+Z31))","v":0},{"$f":"IF(AND(C31=\"REG-N\",E31<>\"\"),1,0)","v":0},1]
[null,22,null,null,null,null,null,null,null,null,null,null,null,null,null,null,null,null,null,null,null,null,null,null,{"$f":"IF(COUNTA(C32:V32)=0,0,SUM(AA32+Z32))","v":0},{"$f":"IF(AND(C32=\"REG-N\",E32<>\"\"),1,0)","v":0},1]
[null,23,null,null,null,null,null,null,null,null,null,null,null,null,null,null,null,null,null,null,null,null,null,null,{"$f":"IF(COUNTA(C33:V33)=0,0,SUM(AA33+Z33))","v":0},{"$f":"IF(AND(C33=\"REG-N\",E33<>\"\"),1,0)","v":0},1]
[null,24,null,null,null,null,null,null,null,null,null,null,null,null,null,null,null,null,null,null,null,null,null,null,{"$f":"IF(COUNTA(C34:V34)=0,0,SUM(AA34+Z34))","v":0},{"$f":"IF(AND(C34=\"REG-N\",E34<>\"\"),1,0)","v":0},1]
[null,25,null,null,null,null,null,null,null,null,null,null,null,null,null,null,null,null,null,null,null,null,null,null,{"$f":"IF(COUNTA(C35:V35)=0,0,SUM(AA35+Z35))","v":0},{"$f":"IF(AND(C35=\"REG-N\",E35<>\"\"),1,0)","v":0},1]
[null,26,null,null,null,null,null,null,null,null,null,null,null,null,null,null,null,null,null,null,null,null,null,null,{"$f":"IF(COUNTA(C36:V36)=0,0,SUM(AA36+Z36))","v":0},{"$f":"IF(AND(C36=\"REG-N\",E36<>\"\"),1,0)","v":0},1]
[null,27,null,null,null,null,null,null,null,null,null,null,null,null,null,null,null,null,null,null,null,null,null,null,{"$f":"IF(COUNTA(C37:V37)=0,0,SUM(AA37+Z37))","v":0},{"$f":"IF(AND(C37=\"REG-N\",E37<>\"\"),1,0)","v":0},1]
[null,28,null,null,null,null,null,null,null,null,null,null,null,null,null,null,null,null,null,null,null,null,null,null,{"$f":"IF(COUNTA(C38:V38)=0,0,SUM(AA38+Z38))","v":0},{"$f":"IF(AND(C38=\"REG-N\",E38<>\"\"),1,0)","v":0},1]
[null,29,null,null,null,null,null,null,null,null,null,null,null,null,null,null,null,null,null,null,null,null,null,null,{"$f":"IF(COUNTA(C39:V39)=0,0,SUM(AA39+Z39))","v":0},{"$f":"IF(AND(C39=\"REG-N\",E39<>\"\"),1,0)","v":0},1]
[null,30,null,null,null,null,null,null,null,null,null,null,null,null,null,null,null,null,null,null,null,null,null,null,{"$f":"IF(COUNTA(C40:V40)=0,0,SUM(AA40+Z40))","v":0},{"$f":"IF(AND(C40=\"REG-N\",E40<>\"\"),1,0)","v":0},1]
[null,31,null,null,null,null,null,null,null,null,null,null,null,null,null,null,null,null,null,null,null,null,null,null,{"$f":"IF(COUNTA(C41:V41)=0,0,SUM(AA41+Z41))","v":0},{"$f":"IF(AND(C41=\"REG-N\",E41<>\"\"),1,0)","v":0},1]
[null,32,null,null,null,null,null,null,null,null,null,null,null,null,null,null,null,null,null,null,null,null,null,null,{"$f":"IF(COUNTA(C42:V42)=0,0,SUM(AA42+Z42))","v":0},{"$f":"IF(AND(C42=\"REG-N\",E42<>\"\"),1,0)","v":0},1]
[null,33,null,null,null,null,null,null,null,null,null,null,null,null,null,null,null,null,null,null,null,null,null,null,{"$f":"IF(COUNTA(C43:V43)=0,0,SUM(AA43+Z43))","v":0},{"$f":"IF(AND(C43=\"REG-N\",E43<>\"\"),1,0)","v":0},1]
[null,34,null,null,null,null,null,null,null,null,null,null,null,null,null,null,null,null,null,null,null,null,null,null,{"$f":"IF(COUNTA(C44:V44)=0,0,SUM(AA44+Z44))","v":0},{"$f":"IF(AND(C44=\"REG-N\",E44<>\"\"),1,0)","v":0},1]
[null,35,null,null,null,null,null,null,null,null,null,null,null,null,null,null,null,null,null,null,null,null,null,null,{"$f":"IF(COUNTA(C45:V45)=0,0,SUM(AA45+Z45))","v":0},{"$f":"IF(AND(C45=\"REG-N\",E45<>\"\"),1,0)","v":0},1]
[null,36,null,null,null,null,null,null,null,null,null,null,null,null,null,null,null,null,null,null,null,null,null,null,{"$f":"IF(COUNTA(C46:V46)=0,0,SUM(AA46+Z46))","v":0},{"$f":"IF(AND(C46=\"REG-N\",E46<>\"\"),1,0)","v":0},1]
[null,37,null,null,null,null,null,null,null,null,null,null,null,null,null,null,null,null,null,null,null,null,null,null,{"$f":"IF(COUNTA(C47:V47)=0,0,SUM(AA47+Z47))","v":0},{"$f":"IF(AND(C47=\"REG-N\",E47<>\"\"),1,0)","v":0},1]
[null,38,null,null,null,null,null,null,null,null,null,null,null,null,null,null,null,null,null,null,null,null,null,null,{"$f":"IF(COUNTA(C48:V48)=0,0,SUM(AA48+Z48))","v":0},{"$f":"IF(AND(C48=\"REG-N\",E48<>\"\"),1,0)","v":0},1]
[null,39,null,null,null,null,null,null,null,null,null,null,null,null,null,null,null,null,null,null,null,null,null,null,{"$f":"IF(COUNTA(C49:V49)=0,0,SUM(AA49+Z49))","v":0},{"$f":"IF(AND(C49=\"REG-N\",E49<>\"\"),1,0)","v":0},1]
[null,40,null,null,null,null,null,null,null,null,null,null,null,null,null,null,null,null,null,null,null,null,null,null,{"$f":"IF(COUNTA(C50:V50)=0,0,SUM(AA50+Z50))","v":0},{"$f":"IF(AND(C50=\"REG-N\",E50<>\"\"),1,0)","v":0},1]

{"sheet":"REG_Distributerji","index":3,"n_rows":19,"n_cols":6,"rows_kept":19,"cut":false,"hidden":false,"merged":[]}
[]
[null,"Register entitet distribucijskih sistemov daljinskega ogrevanja in hlajenja"]
[null,"Priglasitev neregistriranih upravljalcev (distributerjev) distribucijskih sistemov daljinskega ogrevanja in hlajenja"]
[]
[null,null,{"$f":"IF(F6>0,\"Zaznano število napak pri zpolnjevanj obrazca: \"&F6,\"\")","v":""},null,null,"Napake"]
[null,"Tabela 3",null,null,null,{"$f":"SUM(tbl_REG_DIstributer[Napake SUM])","v":0}]
[null,"01","02","03","04","23"]
[null,"ID","Datum izvedene spremembe","Matična številka POS,\nki prevzema upravljanje","Naziv pravne osebe (POS) \nki prevzema v upravljanje DS","Napake SUM"]
[null,"ID","REGDS_SPR_Datum","ID_POS_NREG","POS_NREG_Naziv","Napake SUM"]
[null,{"$f":"IFERROR(B9+1,1)","v":1},null,null,null,{"$f":"IF(OR(COUNTA(C10:E10)=0,COUNTA(C10:E10)=3),0,1)","v":0}]
[null,{"$f":"IFERROR(B10+1,1)","v":2},null,null,null,{"$f":"IF(OR(COUNTA(C11:E12)=0,COUNTA(C11:E12)=3),0,1)","v":0}]
[null,{"$f":"IFERROR(B11+1,1)","v":3},null,null,null,{"$f":"IF(OR(COUNTA(C12:E21)=0,COUNTA(C12:E21)=3),0,1)","v":0}]
[null,4,null,null,null,0]
[null,5,null,null,null,0]
[null,6,null,null,null,0]
[null,7,null,null,null,0]
[null,8,null,null,null,0]
[null,9,null,null,null,0]
[null,10,null,null,null,0]

{"sheet":"BAZA","index":4,"n_rows":213,"n_cols":20,"rows_kept":213,"cut":false,"hidden":true,"merged":[]}
[null,"ID_OB","Občina",null,null,null,null,null,null,null,null,"Generator imen datotek"]
[null,1,"Mestna občina Celje"]
[null,2,"Mestna občina Koper"]
[null,3,"Mestna občina Kranj",null,null,null,null,null,null,null,null,{"$f":"IF(OsnovniPodatki!E16=\"\",\"NEEVIDENTIRAN\",OsnovniPodatki!E16)","v":"NEEVIDENTIRAN"},"DT-Entitete_REG_",{"$f":"CONCATENATE(TEXT(YEAR(TODAY()),\"####\"), RIGHT(\"0\"&TEXT(MONTH(TODAY()),\"##\"),2),RIGHT(\"0\"&TEXT(DAY(TODAY()),\"##\"),2))","v":"20231129"},{"$f":"CONCATENATE(P5,Q5,R5)","v":"104007"},{"$f":"M4&L4&\"_\"&N4&\"-\"&O4","v":"DT-Entitete_REG_NEEVIDENTIRAN_20231129-104007"},null,null,null,"DT-Entitete_REG_5142504000_20231129-10380"]
[null,4,"Mestna občina Ljubljana",null,null,null,null,null,null,null,null,null,null,{"$f":"TEXT(YEAR(TODAY()),\"####\")","v":"2023"},{"$f":"NOW()","v":45259.444524421298},{"$f":"RIGHT(\"0\"&TEXT(HOUR(NOW()),\"##\"),2)","v":"10"},{"$f":"RIGHT(\"0\"&TEXT(MINUTE(NOW()),\"##\"),2)","v":"40"},{"$f":"RIGHT(\"0\"&TEXT(SECOND(NOW()),\"##\"),2)","v":"07"},null,45259.443050810187]
[null,5,"Mestna občina Maribor",null,null,null,null,null,null,null,null,"Generator identa poročila",null,null,{"$f":"TODAY()","v":45259},null,null,null,null,"29. 11. 2023"]
[null,6,"Mestna občina Murska Sobota",null,null,null,null,null,null,null,null,null,null,null,null,{"$f":"L4&\"_\"&N4&\"-\"&O4","v":"NEEVIDENTIRAN_20231129-104007"},null,null,null,"5142504000_20231129-10380"]
[null,7,"Mestna občina Nova Gorica"]
[null,8,"Mestna občina Novo mesto"]
[null,9,"Mestna občina Ptuj"]
[null,10,"Mestna občina Slovenj Gradec",null,null,null,null,null,null,null,null,"Kontrola napak",{"$f":"REG_PN!Z2+REG_DS!AF2+OsnovniPodatki!K3+REG_Distributerji!F6","v":8}]
[null,11,"Mestna občina Velenje"]
[null,12,"Občina Ajdovščina",null,null,null,null,null,null,null,null,"Vsebina dopisa"]
[null,13,"Občina Apače",null,null,null,null,null,null,null,null,{"$f":"\"Posredujemo priglasitev oziroma spremembo entitet distribucijskih sistemov daljinskega ogrevanja za poslovni subjekt: \"&OsnovniPodatki!D11&\", matična številka: \"&OsnovniPodatki!E16","v":"Posredujemo priglasitev oziroma spremembo entitet distribucijskih sistemov daljinskega ogrevanja za poslovni subjekt: , matična številka: "}]
[null,14,"Občina Beltinci"]
[null,15,"Občina Benedikt"]
[null,16,"Občina Bistrica ob Sotli"]
[null,17,"Občina Bled"]
[null,18,"Občina Bloke"]
[null,19,"Občina Bohinj"]
[null,20,"Občina Borovnica"]
[null,21,"Občina Bovec"]
[null,22,"Občina Braslovče"]
[null,23,"Občina Brda"]
[null,24,"Občina Brezovica"]
[null,25,"Občina Brežice"]
[null,26,"Občina Cankova"]
[null,27,"Občina Cerklje na Gorenjskem"]
[null,28,"Občina Cerknica"]
[null,29,"Občina Cerkno"]
[null,30,"Občina Cerkvenjak"]
[null,31,"Občina Cirkulane"]
[null,32,"Občina Črenšovci"]
[null,33,"Občina Črna na Koroškem"]
[null,34,"Občina Črnomelj"]
[null,35,"Občina Destrnik"]
[null,36,"Občina Divača"]
[null,37,"Občina Dobje"]
[null,38,"Občina Dobrepolje"]
[null,39,"Občina Dobrna"]
[null,40,"Občina Dobrova - Polhov Gradec"]
[null,41,"Občina Dobrovnik"]
[null,42,"Občina Dol pri Ljubljani"]
[null,43,"Občina Dolenjske Toplice"]
[null,44,"Občina Domžale"]
[null,45,"Občina Dornava"]
[null,46,"Občina Dravograd"]
[null,47,"Občina Duplek"]
[null,48,"Občina Gorenja vas - Poljane"]
[null,49,"Občina Gorišnica"]
[null,50,"Občina Gorje"]
[null,51,"Občina Gornja Radgona"]
[null,52,"Občina Gornji Grad"]
[null,53,"Občina Gornji Petrovci"]
[null,54,"Občina Grad"]
[null,55,"Občina Grosuplje"]
[null,56,"Občina Hajdina"]
[null,57,"Občina Hoče - Slivnica"]
[null,58,"Občina Hodoš - Hodos község"]
[null,59,"Občina Horjul"]
[null,60,"Občina Hrastnik"]
[null,61,"Občina Hrpelje - Kozina"]
[null,62,"Občina Idrija"]
[null,63,"Občina Ig"]
[null,64,"Občina Ilirska Bistrica"]
[null,65,"Občina Ivančna Gorica"]
[null,66,"Občina Izola"]
[null,67,"Občina Jesenice"]
[null,68,"Občina Jezersko"]
[null,69,"Občina Juršinci"]
[null,70,"Občina Kamnik"]
[null,71,"Občina Kanal ob Soči"]
[null,72,"Občina Kidričevo"]
[null,73,"Občina Kobarid"]
[null,74,"Občina Kobilje"]
[null,75,"Občina Kočevje"]
[null,76,"Občina Komen"]
[null,77,"Občina Komenda"]
[null,78,"Občina Kostanjevica na Krki"]
[null,79,"Občina Kostel"]
[null,80,"Občina Kozje"]
[null,81,"Občina Kranjska Gora"]
[null,82,"Občina Križevci"]
[null,83,"Občina Krško"]
[null,84,"Občina Kungota"]
[null,85,"Občina Kuzma"]
[null,86,"Občina Laško"]
[null,87,"Občina Lenart"]
[null,88,"Občina Lendava"]
[null,89,"Občina Litija"]
[null,90,"Občina Ljubno"]
[null,91,"Občina Ljutomer"]
[null,92,"Občina Log - Dragomer"]
[null,93,"Občina Logatec"]
[null,94,"Občina Loška Dolina"]
[null,95,"Občina Loški Potok"]
[null,96,"Občina Lovrenc na Pohorju"]
[null,97,"Občina Luče"]
[null,98,"Občina Lukovica"]
[null,99,"Občina Majšperk"]
[null,100,"Občina Makole"]
[null,101,"Občina Markovci"]
[null,102,"Občina Medvode"]
[null,103,"Občina Mengeš"]
[null,104,"Občina Metlika"]
[null,105,"Občina Mežica"]
[null,106,"Občina Miklavž na Dravskem polju"]
[null,107,"Občina Miren - Kostanjevica"]
[null,108,"Občina Mirna Peč"]
[null,109,"Občina Mislinja"]
[null,110,"Občina Mokronog - Trebelno"]
[null,111,"Občina Moravče"]
[null,112,"Občina Moravske Toplice"]
[null,113,"Občina Mozirje"]
[null,114,"Občina Muta"]
[null,115,"Občina Naklo"]
[null,116,"Občina Nazarje"]
[null,117,"Občina Odranci"]
[null,118,"Občina Oplotnica"]
[null,119,"Občina Ormož"]
[null,120,"Občina Osilnica"]
[null,121,"Občina Pesnica"]
[null,122,"Občina Piran"]
[null,123,"Občina Pivka"]
[null,124,"Občina Podčetrtek"]
[null,125,"Občina Podlehnik"]
[null,126,"Občina Podvelka"]
[null,127,"Občina Poljčane"]
[null,128,"Občina Polzela"]
[null,129,"Občina Postojna"]
[null,130,"Občina Prebold"]
[null,131,"Občina Preddvor"]
[null,132,"Občina Prevalje"]
[null,133,"Občina Puconci"]
[null,134,"Občina Rače - Fram"]
[null,135,"Občina Radeče"]
[null,136,"Občina Radenci"]
[null,137,"Občina Radlje ob Dravi"]
[null,138,"Občina Radovljica"]
[null,139,"Občina Ravne na Koroškem"]
[null,140,"Občina Razkrižje"]
[null,141,"Občina Rečica ob Savinji"]
[null,142,"Občina Renče - Vogrsko"]
[null,143,"Občina Ribnica"]
[null,144,"Občina Ribnica na Pohorju"]
[null,145,"Občina Rogaška Slatina"]
[null,146,"Občina Rogašovci"]
[null,147,"Občina Rogatec"]
[null,148,"Občina Ruše"]
[null,149,"Občina Selnica ob Dravi"]
[null,150,"Občina Semič"]
[null,151,"Občina Sevnica"]
[null,152,"Občina Sežana"]
[null,153,"Občina Slovenska Bistrica"]
[null,154,"Občina Slovenske Konjice"]
[null,155,"Občina Sodražica"]
[null,156,"Občina Solčava"]
[null,157,"Občina Središče ob Dravi"]
[null,158,"Občina Starše"]
[null,159,"Občina Straža"]
[null,160,"Občina Sveta Ana"]
[null,161,"Občina Sveta Trojica v Slovenskih goricah"]
[null,162,"Občina Sveti Andraž v Slovenskih goricah"]
[null,163,"Občina Sveti Jurij ob Ščavnici"]
[null,164,"Občina Sveti Jurij v Slovenskih Goricah"]
[null,165,"Občina Sveti Tomaž"]
[null,166,"Občina Šalovci"]
[null,167,"Občina Šempeter - Vrtojba"]
[null,168,"Občina Šenčur"]
[null,169,"Občina Šentilj"]
[null,170,"Občina Šentjernej"]
[null,171,"Občina Šentjur pri Celju"]
[null,172,"Občina Šentrupert"]
[null,173,"Občina Škocjan"]
[null,174,"Občina Škofja Loka"]
[null,175,"Občina Škofljica"]
[null,176,"Občina Šmarje pri Jelšah"]
[null,177,"Občina Šmarješke Toplice"]
[null,178,"Občina Šmartno ob Paki"]
[null,179,"Občina Šmartno pri Litiji"]
[null,180,"Občina Šoštanj"]
[null,181,"Občina Štore"]
[null,182,"Občina Tabor"]
[null,183,"Občina Tišina"]
[null,184,"Občina Tolmin"]
[null,185,"Občina Trbovlje"]
[null,186,"Občina Trebnje"]
[null,187,"Občina Trnovska vas"]
[null,188,"Občina Trzin"]
[null,189,"Občina Tržič"]
[null,190,"Občina Turnišče"]
[null,191,"Občina Velika Polana"]
[null,192,"Občina Velike Lašče"]
[null,193,"Občina Veržej"]
[null,194,"Občina Videm"]
[null,195,"Občina Vipava"]
[null,196,"Občina Vitanje"]
[null,197,"Občina Vodice"]
[null,198,"Občina Vojnik"]
[null,199,"Občina Vransko"]
[null,200,"Občina Vrhnika"]
[null,201,"Občina Vuzenica"]
[null,202,"Občina Zagorje ob Savi"]
[null,203,"Občina Zavrč"]
[null,204,"Občina Zreče"]
[null,205,"Občina Žalec"]
[null,206,"Občina Železniki"]
[null,207,"Občina Žetale"]
[null,208,"Občina Žiri"]
[null,209,"Občina Žirovnica"]
[null,210,"Občina Žužemberk"]
[null,211,"Občina Mirna"]
[null,212,"Občina Ankaran"]

{"sheet":"XML","index":5,"n_rows":17,"n_cols":17,"rows_kept":17,"cut":false,"hidden":true,"merged":[]}
["v.20.01.03",null,null,"Aleksander TRUPEJ, udis. (2023)",null,null,{"$f":"BAZA!T4","v":"DT-Entitete_REG_5142504000_20231129-10380"}]
[20231124,null,null,"Vhodni podatki za XML datotek"]
[]
[]
["Colum_1","Colum_2","Colum_3","Colum_4","Colum_5","Colum_6","Colum_7","Colum_8","Colum_9","Colum_10","Colum_11","Colum_12","Colum_13","Colum_14","Colum_15","Colum_16"]
[1,null,null,"<Ident poročila>",null,"tbl_XML_OPodatki"]
[2]
[3,"XML","AE","ID_REG_PR","LP","ID_POS","NAZIV_POS-S","NAZIV_PO-S","ID_Tabele"]
[4,"XML","AE","ID_REG_PR","LP","ID_POS","NAZIV_POS-S","NAZIV_PO-S","ID_Tabele_00"]
[5,null,"00",{"$f":"BAZA!T7","v":"5142504000_20231129-10380"},{"$f":"YEAR(OsnovniPodatki!E27)","v":1900},{"$f":"OsnovniPodatki!E16","v":0},{"$f":"OsnovniPodatki!D11","v":0},{"$f":"IF(tbl_Osnova_00[NAZIV_POS-S]=0,OsnovniPodatki!D12&\" \"&OsnovniPodatki!D13,0)","v":" "},"0"]
[6]
[7,null,null,"<Podatki o poročilu>",null,"tbl_XML_Porocilo"]
[8]
[9,"XML","AE","ID_REG_PR","LP","ID_POS","NAZIV_POS-S","NAZIV_PO-S","ID_Tabele","Datum","Ura","Ime_e-porocila","OSN_Datum_sestave_porocila","OSN_Kraj_sestave_porocila","OSN_Odgovornost_P","OSN_Telefonska_Stevilka","OSN_Enaslov_Kontaktna_oseba"]
[10,"XML","AE","ID_REG_PR","LP","ID_POS","NAZIV_POS-S","NAZIV_PO-S","ID_Tabele_01","Datum","Ura","Ime_e-porocila","OSN_Datum_sestave_porocila","OSN_Kraj_sestave_porocila","OSN_OdgOseba_LP","OSN_Telefonska_stevilka","OSN_Enaslov_kontakta"]
[11,null,"00",{"$f":"D10","v":"5142504000_20231129-10380"},{"$f":"E10","v":1900},{"$f":"F10","v":0},{"$f":"G10","v":0},{"$f":"tbl_Osnova_00[NAZIV_PO-S]","v":" "},1,{"$f":"BAZA!T6","v":"29. 11. 2023"},{"$f":"BAZA!T5","v":45259.443050810187},{"$f":"BAZA!T4","v":"DT-Entitete_REG_5142504000_20231129-10380"},{"$f":"OsnovniPodatki!E27","v":0},{"$f":"OsnovniPodatki!E26","v":0},{"$f":"OsnovniPodatki!D12&\" \"&OsnovniPodatki!D13","v":" "},{"$f":"OsnovniPodatki!E17","v":0},{"$f":"OsnovniPodatki!D19","v":0}]
[12]

{"sheet":"Sifrant","index":6,"n_rows":34,"n_cols":61,"rows_kept":34,"cut":false,"hidden":true,"merged":[]}
[]
[]
[null,"tblS_REGDS_TIP",null,null,null,null,"tblS_REGDS_Namen",null,null,null,null,"tblS_REGPN_Namen",null,null,null,null,"tblS_DSOskrba",null,null,null,"tblS_DSTempRez",null,null,null,null,"tblS_DSIzvajanjeDej",null,null,null,null,"tblS_DSNamenOskrbe",null,null,null,"tblS_DSTipOmr",null,null,null,"tblS_DSTipIzv",null,null,null,"tblS_DPProNamen",null,null,null,null,"tblS_PN_Proces",null,null,null,null,null,"tblS_Goriva",null,null,null,null,"tblS_PN_Tehnologija"]
[]
[null,"ID","ID_REGDS_TIP","REGDS_TIP_Opis",null,null,"ID","ID_REGDS","REGDS_Namen",null,null,"ID","ID_REGPN","REGPN_Namen",null,null,"ID","DS_Oskrba_TIP",null,null,"ID","DSistem Tip_TempRezim","DSistem TIP",null,null,"ID","GJS_OblikaIzvajanja","OblikaIzvajanja",null,null,"ID","DSistem NamenPorabe",null,null,"ID","DSistem Tip_Omrezje",null,null,"ID","DSistem Tip_OmrezjeIzvedba",null,null,"ID","PN_PrimarniNamen","ID_PNPrNamen",null,null,"ID","PN_ProizvodniProces","ID_PN_ProProces","ID_PN_ProProces_1",null,null,"ID","Gorivo_Naziv","Gorivo_Naziv_I",null,null,"ID","PN_Tehnologija_Tip","ID_PN_TEH"]
[null,1,"POD","Pričetek opravljanja dejavnosti",null,null,1,"PRU-N","Prevzem v upravljanje (nov DS)",null,null,1,"REG-N","Registracija nove PN",null,null,1,"Distribucija",null,null,1,"DS hladu","DSHL",null,null,1,"Javno podjetje","GJS",null,null,1,"Hlajenje objektov",null,null,1,"Dvocevni",null,null,1,"Obhodna izvedba",null,null,1,"Proizvodnja elektrike","PrElE",null,null,1,"Trigeneracija","KPTE","SPTE",null,null,1,"Črni premog","Premog",null,null,1,"Absorpcijsko hlajenje","PHLA"]
[null,2,"SPD","Sprememba osnovnih karakteristik",null,null,2,"PRU-O","Prevzem DS v upravljanje (obstoječ DS)",null,null,2,"REG-O","Registracija obstoječe PN",null,null,2,"Distribucija z lastno proizvodnjo",null,null,2,"Parovodni DS","PADS",null,null,2,"Javni gospodarski zavod","GJS",null,null,2,"Ogrevanje prostorov",null,null,2,"Enocevni",null,null,2,"Sekcionirano",null,null,2,"Proizvodnja toplote za daljinsko ogrevanje","PrToE",null,null,2,"Kogeneracija","SPTE","SPTE",null,null,2,"Rjavi premog","Premog",null,null,2,"Hranilnik toplote stopljene soli","HRTE"]
[null,3,"PRD","Prenehanje opravljanja dejavnosti",null,null,3,"SPR","Sprememba karakteristik DS",null,null,3,"SPR","Sprememba karakteristik PN (nadgradnja)",null,null,null,null,null,null,3,"Vročevodni/Toplovodni DS","VTDS",null,null,3,"Javno-zasebno partnerstvo","GJS",null,null,3,"Ogrevanje prostorov in priprava STV",null,null,null,null,null,null,3,"Zazankano",null,null,3,"Proizvodnja toplote za tehnološke procese","PrToTehP",null,null,3,"Proizvodnja toplote","PTOP","PTOP",null,null,3,"Lignit","Premog",null,null,3,"Hranilnik toplote vroče vode","HRTE"]
[null,null,null,null,null,null,4,"PRE","Predaja DS v upravljanje",null,null,4,"ODP-P","Odpis PN (prodaja)",null,null,null,null,null,null,null,null,null,null,null,4,"Koncesionirana gospodarska javna služba","GJS",null,null,4,"Oskrba tehnoloških procesov s paro",null,null,null,null,null,null,4,"Drugo",null,null,4,"Proizvodnja pare za tehnološke procese","PrPaTehP",null,null,4,"Proizvodnja hladu","PHLA","PHLA",null,null,4,"Kurilno olje - S","Naftni derivati",null,null,4,"Industrijski presežek toplote","PTOP"]
[null,null,null,null,null,null,5,"UKD","Ukinitev delovanja DS",null,null,5,"ODP-R","Odpis PN (uničenje)",null,null,null,null,null,null,null,null,null,null,null,5,"Režijski obrat","GJS",null,null,null,null,null,null,null,null,null,null,null,null,null,null,5,"Proizvodnja hladu za daljinsko hlajenje","PrHl",null,null,5,"Hranilnik toplotne energije","HRTE","HRTE",null,null,5,"Kurilno olje - EL","Naftni derivati",null,null,5,"Kombiniran kotel na zemeljski plin in tekoče gorivo","PTOP"]
[null,null,null,null,null,null,null,null,null,null,null,6,"PRD","Prenehanje dejavnosti oskrbe (naprava ni namenjena več za oskrbo DS)",null,null,null,null,null,null,null,null,null,null,null,6,"Druga oblika GJS","GJS",null,null,null,null,null,null,null,null,null,null,null,null,null,null,6,"Proizvodnja hladu za tehnološke procese","PrHlTehP",null,null,null,null,null,null,null,null,6,"Utekočinjen naftni plin - UNP","Naftni derivati",null,null,6,"Kombinirani cikel s plinsko turbino z izkoriščanjem odpadne toplote","SPTE"]
[null,null,null,null,null,null,null,null,null,null,null,null,null,null,null,null,null,null,null,null,null,null,null,null,null,7,"Upravljanje tržnega distribucijskega sistema","Tržna",null,null,null,null,null,null,null,null,null,null,null,null,null,null,7,"Hranilnik toplotne energije","HrTE",null,null,null,null,null,null,null,null,7,"Zemeljski plin","Zemeljski plin",null,null,7,"Kombinirani kotel na tekoče gorivo","PTOP"]
[null,null,null,null,null,null,null,null,null,null,null,null,null,null,null,null,null,null,null,null,null,null,null,null,null,8,"Upravljanje lastniškega distribucijskega sistema","Lastniška",null,null,null,null,null,null,null,null,null,null,null,null,null,null,null,null,null,null,null,null,null,null,null,null,null,8,"Lesni sekanci","Biomasa",null,null,8,"Kombinirani kotel na trdo gorivo","PTOP"]
[null,null,null,null,null,null,null,null,null,null,null,null,null,null,null,null,null,null,null,null,null,null,null,null,null,null,null,null,null,null,null,null,null,null,null,null,null,null,null,null,null,null,null,null,null,null,null,null,null,null,null,null,null,9,"Lesni peleti","Biomasa",null,null,9,"Kompresorsko hlajenje","PHLA"]
[null,null,null,null,null,null,null,null,null,null,null,null,null,null,null,null,null,null,null,null,null,null,null,null,null,null,null,null,null,null,null,null,null,null,null,null,null,null,null,null,null,null,null,null,null,null,null,null,null,null,null,null,null,10,"Lesna biomasa - mešano","Biomasa",null,null,10,"Kondenzacijski kotel","PTOP"]
[null,null,null,null,null,null,null,null,null,null,null,null,null,null,null,null,null,null,null,null,null,null,null,null,null,null,null,null,null,null,null,null,null,null,null,null,null,null,null,null,null,null,null,null,null,null,null,null,null,null,null,null,null,11,"Lubje","Biomasa",null,null,11,"Kotel na lesno biomaso","PTOP"]
[null,null,null,null,null,null,null,null,null,null,null,null,null,null,null,null,null,null,null,null,null,null,null,null,null,null,null,null,null,null,null,null,null,null,null,null,null,null,null,null,null,null,null,null,null,null,null,null,null,null,null,null,null,12,"Biorazgradljivi odpadki","Biomasa",null,null,12,"Latentni hranilnik toplote","HRTE"]
[null,null,null,null,null,null,null,null,null,null,null,null,null,null,null,null,null,null,null,null,null,null,null,null,null,null,null,null,null,null,null,null,null,null,null,null,null,null,null,null,null,null,null,null,null,null,null,null,null,null,null,null,null,13,"Komunalni odpadki","Komunalni odpadki",null,null,13,"Motor z notranjim zgorevanjem in rekuperacijo toplote","SPTE"]
[null,null,null,null,null,null,null,null,null,null,null,null,null,null,null,null,null,null,null,null,null,null,null,null,null,null,null,null,null,null,null,null,null,null,null,null,null,null,null,null,null,null,null,null,null,null,null,null,null,null,null,null,null,14,"Geotermalna energija","Geotermalna energija",null,null,14,"Parna odjemna kondenzacijska turbina","SPTE"]
[null,null,null,null,null,null,null,null,null,null,null,null,null,null,null,null,null,null,null,null,null,null,null,null,null,null,null,null,null,null,null,null,null,null,null,null,null,null,null,null,null,null,null,null,null,null,null,null,null,null,null,null,null,15,"Solarna energija","Solarna energija",null,null,15,"Parna protitlačna turbina","SPTE"]
[null,null,null,null,null,null,null,null,null,null,null,null,null,null,null,null,null,null,null,null,null,null,null,null,null,null,null,null,null,null,null,null,null,null,null,null,null,null,null,null,null,null,null,null,null,null,null,null,null,null,null,null,null,16,"Električna energija","Električna energija",null,null,16,"Parni akumulator","HRTE"]
[null,null,null,null,null,null,null,null,null,null,null,null,null,null,null,null,null,null,null,null,null,null,null,null,null,null,null,null,null,null,null,null,null,null,null,null,null,null,null,null,null,null,null,null,null,null,null,null,null,null,null,null,null,17,"Toplota vroče vode","Toplota vroče vode",null,null,17,"Parni kotel na lesno biomaso s parnim agregatom","SPTE"]
[null,null,null,null,null,null,null,null,null,null,null,null,null,null,null,null,null,null,null,null,null,null,null,null,null,null,null,null,null,null,null,null,null,null,null,null,null,null,null,null,null,null,null,null,null,null,null,null,null,null,null,null,null,18,"Industrijska odpadna toplota","Industrijska odpadna toplota",null,null,18,"Plinska turbina z izkoriščanjem odpadne toplote","SPTE"]
[null,null,null,null,null,null,null,null,null,null,null,null,null,null,null,null,null,null,null,null,null,null,null,null,null,null,null,null,null,null,null,null,null,null,null,null,null,null,null,null,null,null,null,null,null,null,null,null,null,null,null,null,null,19,"Toplota okolice","Toplota okolice",null,null,19,"Plinski kotel","PTOP"]
[null,null,null,null,null,null,null,null,null,null,null,null,null,null,null,null,null,null,null,null,null,null,null,null,null,null,null,null,null,null,null,null,null,null,null,null,null,null,null,null,null,null,null,null,null,null,null,null,null,null,null,null,null,null,null,null,null,null,20,"Sončni kolektor","PTOP"]
[null,null,null,null,null,null,null,null,null,null,null,null,null,null,null,null,null,null,null,null,null,null,null,null,null,null,null,null,null,null,null,null,null,null,null,null,null,null,null,null,null,null,null,null,null,null,null,null,null,null,null,null,null,null,null,null,null,null,21,"Specialni kotel","PTOP"]
[null,null,null,null,null,null,null,null,null,null,null,null,null,null,null,null,null,null,null,null,null,null,null,null,null,null,null,null,null,null,null,null,null,null,null,null,null,null,null,null,null,null,null,null,null,null,null,null,null,null,null,null,null,null,null,null,null,null,22,"Toplotna črpalka (zrak-voda)","PTOP"]
[null,null,null,null,null,null,null,null,null,null,null,null,null,null,null,null,null,null,null,null,null,null,null,null,null,null,null,null,null,null,null,null,null,null,null,null,null,null,null,null,null,null,null,null,null,null,null,null,null,null,null,null,null,null,null,null,null,null,23,"Geotermalna toplotna črpalka (voda-voda)","PTOP"]
[null,null,null,null,null,null,null,null,null,null,null,null,null,null,null,null,null,null,null,null,null,null,null,null,null,null,null,null,null,null,null,null,null,null,null,null,null,null,null,null,null,null,null,null,null,null,null,null,null,null,null,null,null,null,null,null,null,null,24,"Geotermalna toplotna črpalka (zemlja-voda)","PHLA"]
[null,null,null,null,null,null,null,null,null,null,null,null,null,null,null,null,null,null,null,null,null,null,null,null,null,null,null,null,null,null,null,null,null,null,null,null,null,null,null,null,null,null,null,null,null,null,null,null,null,null,null,null,null,null,null,null,null,null,25,"Mikroturbina","SPTE"]
[null,null,null,null,null,null,null,null,null,null,null,null,null,null,null,null,null,null,null,null,null,null,null,null,null,null,null,null,null,null,null,null,null,null,null,null,null,null,null,null,null,null,null,null,null,null,null,null,null,null,null,null,null,null,null,null,null,null,26,"Stirlingov motor","SPTE"]
[null,null,null,null,null,null,null,null,null,null,null,null,null,null,null,null,null,null,null,null,null,null,null,null,null,null,null,null,null,null,null,null,null,null,null,null,null,null,null,null,null,null,null,null,null,null,null,null,null,null,null,null,null,null,null,null,null,null,27,"Gorivne celice","SPTE"]
[null,null,null,null,null,null,null,null,null,null,null,null,null,null,null,null,null,null,null,null,null,null,null,null,null,null,null,null,null,null,null,null,null,null,null,null,null,null,null,null,null,null,null,null,null,null,null,null,null,null,null,null,null,null,null,null,null,null,28,"Parni motor","SPTE"]
[null,null,null,null,null,null,null,null,null,null,null,null,null,null,null,null,null,null,null,null,null,null,null,null,null,null,null,null,null,null,null,null,null,null,null,null,null,null,null,null,null,null,null,null,null,null,null,null,null,null,null,null,null,null,null,null,null,null,29,"Motor z organskim Rankinovim ciklom","SPTE"]